[Event "Titled Tuesday Blitz December 20 Late 2022"]
[White "Ibadov, Dashgyn"]
[Black "Andreassen, Lars"]
[WhiteFideId "24107514"]
[BlackFideId "1504878"]
[WhiteElo "2208"]
[BlackElo "2119"]
[Result "1-0"]
[Round "10"]
[TimeControl "180+1"]
[Date "2022.12.21"]
[WhiteClock "0:01:01"]
[BlackClock "0:00:11"]

1. d4 {[%clk 0:03:00]}  d5 {[%clk 0:01:15]} 2. c4 {[%clk 0:02:59]}  e6 {[%clk 0:01:16]} 3. Nf3 {[%clk 0:02:58]}  c5 {[%clk 0:01:17]} 4. cxd5 {[%clk 0:02:57]}  cxd4 {[%clk 0:01:17]} 5. Nc3 {[%clk 0:02:58]}  dxc3 {[%clk 0:01:17]} 6. bxc3 {[%clk 0:02:58]}  Qxd5 {[%clk 0:01:16]} 7. Qc2 {[%clk 0:02:58]}  Nc6 {[%clk 0:01:16]} 8. e4 {[%clk 0:02:58]}  Qa5 {[%clk 0:01:16]} 9. Bc4 {[%clk 0:02:53]}  Nf6 {[%clk 0:01:14]} 10. O-O {[%clk 0:02:52]}  Be7 {[%clk 0:01:14]} 11. Re1 {[%clk 0:02:40]}  e5 {[%clk 0:01:13]} 12. Rb1 {[%clk 0:02:27]}  O-O {[%clk 0:01:12]} 13. Bg5 {[%clk 0:02:08]}  Qc7 {[%clk 0:01:11]} 14. a4 {[%clk 0:02:01]}  h6 {[%clk 0:01:11]} 15. Bh4 {[%clk 0:02:01]}  Be6 {[%clk 0:01:11]} 16. Bxe6 {[%clk 0:01:55]}  fxe6 {[%clk 0:01:12]} 17. Qb3 {[%clk 0:01:56]}  b6 {[%clk 0:01:01]} 18. Qxe6+ {[%clk 0:01:55]}  Rf7 {[%clk 0:00:47]} 19. Rbd1 {[%clk 0:01:52]}  Qc8 {[%clk 0:00:43]} 20. Qc4 {[%clk 0:01:45]}  Kf8 {[%clk 0:00:31]} 21. Bg3 {[%clk 0:01:37]}  Na5 {[%clk 0:00:20]} 22. Qa2 {[%clk 0:01:36]}  Nc6 {[%clk 0:00:19]} 23. Bxe5 {[%clk 0:01:34]}  Ng4 {[%clk 0:00:19]} 24. Bg3 {[%clk 0:01:29]}  Rxf3 {[%clk 0:00:19]} 25. gxf3 {[%clk 0:01:29]}  Nge5 {[%clk 0:00:20]} 26. Kg2 {[%clk 0:01:16]}  Ng6 {[%clk 0:00:16]} 27. Rd5 {[%clk 0:01:13]}  Nh4+ {[%clk 0:00:16]} 28. Bxh4 {[%clk 0:01:11]}  Bxh4 {[%clk 0:00:16]} 29. Red1 {[%clk 0:01:06]}  Bf6 {[%clk 0:00:15]} 30. Rd7 {[%clk 0:01:06]}  Ne7 {[%clk 0:00:14]} 31. Qe6 {[%clk 0:01:02]}  Qc5 {[%clk 0:00:11]} 32. Rd8+ {[%clk 0:01:01]} 1-0


[Site "https://www.chess.com"]

[Event "Titled Tuesday Blitz December 20 Late 2022"]
[White "Ibarra Jerez, Jose Carlos"]
[Black "Olsen, Filip Boe"]
[WhiteFideId "2226332"]
[BlackFideId "1440640"]
[WhiteElo "2638"]
[BlackElo "2333"]
[Result "1-0"]
[Round "10"]
[TimeControl "180+1"]
[Date "2022.12.20"]
[WhiteClock "0:01:00"]
[BlackClock "0:00:51"]

1. e4 {[%clk 0:03:00]}  c6 {[%clk 0:02:55]} 2. Nf3 {[%clk 0:03:00]}  d5 {[%clk 0:02:56]} 3. d3 {[%clk 0:03:01]}  Nf6 {[%clk 0:02:47]} 4. e5 {[%clk 0:02:57]}  Nfd7 {[%clk 0:02:47]} 5. d4 {[%clk 0:02:58]}  c5 {[%clk 0:02:47]} 6. c4 {[%clk 0:02:53]}  cxd4 {[%clk 0:02:33]} 7. cxd5 {[%clk 0:02:53]}  Qa5+ {[%clk 0:02:33]} 8. b4 {[%clk 0:02:54]}  Qxd5 {[%clk 0:02:32]} 9. Nc3 {[%clk 0:02:54]}  Qc6 {[%clk 0:02:26]} 10. Nb5 {[%clk 0:02:29]}  a6 {[%clk 0:02:10]} 11. Nbxd4 {[%clk 0:02:21]}  Qe4+ {[%clk 0:02:10]} 12. Be3 {[%clk 0:02:10]}  e6 {[%clk 0:02:08]} 13. Qb3 {[%clk 0:01:56]}  Nxe5 {[%clk 0:01:56]} 14. Be2 {[%clk 0:01:41]}  Nbc6 {[%clk 0:01:53]} 15. O-O {[%clk 0:01:40]}  Bd7 {[%clk 0:01:51]} 16. b5 {[%clk 0:01:33]}  Nxf3+ {[%clk 0:01:43]} 17. Nxf3 {[%clk 0:01:14]}  axb5 {[%clk 0:01:33]} 18. Rfd1 {[%clk 0:01:14]}  Nb4 {[%clk 0:01:02]} 19. Rd4 {[%clk 0:01:05]}  Qg6 {[%clk 0:00:52]} 20. Rxd7 {[%clk 0:01:00]}  Kxd7 {[%clk 0:00:51]} 21. Ne5+ {[%clk 0:01:00]} 1-0


[Site "https://www.chess.com"]

[Event "Titled Tuesday Blitz December 20 Late 2022"]
[White "Indjic, Aleksandar"]
[Black "Haydon, David L"]
[WhiteFideId "911925"]
[BlackFideId "415405"]
[WhiteElo "2616"]
[BlackElo "2318"]
[Result "0-1"]
[Round "10"]
[TimeControl "180+1"]
[Date "2022.12.20"]
[WhiteClock "0:00:36"]
[BlackClock "0:01:09"]

1. d4 {[%clk 0:02:59]}  c6 {[%clk 0:03:00]} 2. c4 {[%clk 0:02:58]}  d5 {[%clk 0:03:01]} 3. Nc3 {[%clk 0:02:56]}  Nf6 {[%clk 0:03:00]} 4. Nf3 {[%clk 0:02:56]}  e6 {[%clk 0:03:00]} 5. Bg5 {[%clk 0:02:54]}  Be7 {[%clk 0:02:59]} 6. e3 {[%clk 0:02:53]}  Nbd7 {[%clk 0:02:59]} 7. Qc2 {[%clk 0:02:53]}  a6 {[%clk 0:02:59]} 8. cxd5 {[%clk 0:02:42]}  cxd5 {[%clk 0:02:58]} 9. Bd3 {[%clk 0:02:41]}  b5 {[%clk 0:02:57]} 10. O-O {[%clk 0:02:32]}  Bb7 {[%clk 0:02:56]} 11. h3 {[%clk 0:02:32]}  Rc8 {[%clk 0:02:56]} 12. Qb3 {[%clk 0:02:27]}  O-O {[%clk 0:02:54]} 13. Rac1 {[%clk 0:02:24]}  Nb6 {[%clk 0:02:53]} 14. Qd1 {[%clk 0:02:19]}  Nc4 {[%clk 0:02:52]} 15. Qe2 {[%clk 0:02:17]}  Ne4 {[%clk 0:02:48]} 16. Bxe7 {[%clk 0:02:15]}  Qxe7 {[%clk 0:02:44]} 17. Nb1 {[%clk 0:01:53]}  g6 {[%clk 0:02:30]} 18. Rc2 {[%clk 0:01:35]}  Ncd6 {[%clk 0:02:22]} 19. Rfc1 {[%clk 0:01:35]}  Rxc2 {[%clk 0:02:20]} 20. Rxc2 {[%clk 0:01:36]}  Rc8 {[%clk 0:02:20]} 21. Ne1 {[%clk 0:01:36]}  Rxc2 {[%clk 0:02:18]} 22. Bxc2 {[%clk 0:01:36]}  e5 {[%clk 0:02:17]} 23. Nf3 {[%clk 0:01:35]}  exd4 {[%clk 0:02:16]} 24. Nxd4 {[%clk 0:01:36]}  Nc4 {[%clk 0:02:15]} 25. b3 {[%clk 0:01:33]}  Ne5 {[%clk 0:02:14]} 26. Nd2 {[%clk 0:01:31]}  Nc3 {[%clk 0:02:13]} 27. Qe1 {[%clk 0:01:30]}  Nxa2 {[%clk 0:02:12]} 28. N2f3 {[%clk 0:01:29]}  Nxf3+ {[%clk 0:02:09]} 29. Nxf3 {[%clk 0:01:30]}  Nb4 {[%clk 0:02:09]} 30. Bb1 {[%clk 0:01:28]}  Qc5 {[%clk 0:02:08]} 31. Qd2 {[%clk 0:01:25]}  Nc6 {[%clk 0:02:05]} 32. Qb2 {[%clk 0:01:22]}  b4 {[%clk 0:02:05]} 33. Bd3 {[%clk 0:01:15]}  Qc3 {[%clk 0:02:04]} 34. Qxc3 {[%clk 0:01:10]}  bxc3 {[%clk 0:02:04]} 35. Kf1 {[%clk 0:01:09]}  Nb4 {[%clk 0:02:03]} 36. Ne1 {[%clk 0:01:09]}  Bc6 {[%clk 0:01:56]} 37. Ke2 {[%clk 0:01:02]}  Bb5 {[%clk 0:01:55]} 38. Bxb5 {[%clk 0:01:02]}  axb5 {[%clk 0:01:55]} 39. Nf3 {[%clk 0:00:59]}  Nc6 {[%clk 0:01:46]} 40. Ne1 {[%clk 0:00:58]}  b4 {[%clk 0:01:43]} 41. Nd3 {[%clk 0:00:55]}  Kf8 {[%clk 0:01:42]} 42. Nf4 {[%clk 0:00:53]}  d4 {[%clk 0:01:42]} 43. e4 {[%clk 0:00:53]}  Na5 {[%clk 0:01:37]} 44. Nd3 {[%clk 0:00:52]}  Nxb3 {[%clk 0:01:35]} 45. Nxb4 {[%clk 0:00:52]}  Nc5 {[%clk 0:01:34]} 46. f3 {[%clk 0:00:50]}  Ke8 {[%clk 0:01:33]} 47. Kd1 {[%clk 0:00:42]}  d3 {[%clk 0:01:32]} 48. Na2 {[%clk 0:00:41]}  c2+ {[%clk 0:01:31]} 49. Kd2 {[%clk 0:00:41]}  Nb3+ {[%clk 0:01:29]} 50. Kxd3 {[%clk 0:00:40]}  c1=Q {[%clk 0:01:29]} 51. Nxc1 {[%clk 0:00:41]}  Nxc1+ {[%clk 0:01:30]} 52. Ke3 {[%clk 0:00:39]}  Ke7 {[%clk 0:01:30]} 53. h4 {[%clk 0:00:39]}  Na2 {[%clk 0:01:30]} 54. Kf4 {[%clk 0:00:40]}  Nc3 {[%clk 0:01:29]} 55. Kg5 {[%clk 0:00:40]}  h5 {[%clk 0:01:29]} 56. g4 {[%clk 0:00:38]}  hxg4 {[%clk 0:01:29]} 57. Kxg4 {[%clk 0:00:39]}  Kf6 {[%clk 0:01:28]} 58. h5 {[%clk 0:00:39]}  gxh5+ {[%clk 0:01:20]} 59. Kxh5 {[%clk 0:00:40]}  Ke5 {[%clk 0:01:20]} 60. Kg5 {[%clk 0:00:38]}  Ne2 {[%clk 0:01:16]} 61. Kh6 {[%clk 0:00:38]}  f6 {[%clk 0:01:08]} 62. Kg6 {[%clk 0:00:37]}  Ke6 {[%clk 0:01:09]} 63. Kg7 {[%clk 0:00:36]}  Nd4 {[%clk 0:01:08]} 64. f4 {[%clk 0:00:36]}  Ne2 {[%clk 0:01:09]} 0-1


[Site "https://www.chess.com"]

[Event "Titled Tuesday Blitz December 20 Late 2022"]
[White "Kalajzic, Ivan"]
[Black "Goncalves, Davi Sulzbacher"]
[WhiteFideId "14506378"]
[BlackFideId "2154510"]
[WhiteElo "2163"]
[BlackElo "2182"]
[Result "0-1"]
[Round "10"]
[TimeControl "180+1"]
[Date "2022.12.21"]
[WhiteClock "0:00:12"]
[BlackClock "0:00:18"]

1. c4 {[%clk 0:03:00]}  e5 {[%clk 0:02:58]} 2. Nc3 {[%clk 0:03:00]}  f5 {[%clk 0:02:59]} 3. e4 {[%clk 0:02:59]}  Nf6 {[%clk 0:02:59]} 4. g3 {[%clk 0:02:57]}  Bc5 {[%clk 0:02:59]} 5. Bg2 {[%clk 0:02:54]}  O-O {[%clk 0:03:00]} 6. d3 {[%clk 0:02:50]}  fxe4 {[%clk 0:02:59]} 7. dxe4 {[%clk 0:02:28]}  d6 {[%clk 0:02:57]} 8. Nh3 {[%clk 0:02:09]}  Bg4 {[%clk 0:02:42]} 9. f3 {[%clk 0:02:07]}  Be6 {[%clk 0:02:42]} 10. Qe2 {[%clk 0:02:05]}  Nc6 {[%clk 0:02:41]} 11. Be3 {[%clk 0:02:01]}  Bxe3 {[%clk 0:02:39]} 12. Qxe3 {[%clk 0:02:02]}  Bxc4 {[%clk 0:02:39]} 13. O-O-O {[%clk 0:02:00]}  Qe8 {[%clk 0:02:30]} 14. Nf2 {[%clk 0:01:45]}  b5 {[%clk 0:02:18]} 15. Kb1 {[%clk 0:01:42]}  b4 {[%clk 0:02:05]} 16. Nd5 {[%clk 0:01:42]}  Nxd5 {[%clk 0:02:04]} 17. exd5 {[%clk 0:01:43]}  Nd4 {[%clk 0:02:04]} 18. Rhe1 {[%clk 0:01:25]}  Bxd5 {[%clk 0:01:24]} 19. Ne4 {[%clk 0:00:53]}  Qc6 {[%clk 0:01:04]} 20. Rxd4 {[%clk 0:00:50]}  exd4 {[%clk 0:01:01]} 21. Qxd4 {[%clk 0:00:51]}  b3 {[%clk 0:01:01]} 22. axb3 {[%clk 0:00:46]}  Bxb3 {[%clk 0:01:01]} 23. Rc1 {[%clk 0:00:42]}  Ba2+ {[%clk 0:01:00]} 24. Kxa2 {[%clk 0:00:40]}  Qxc1 {[%clk 0:01:01]} 25. f4 {[%clk 0:00:33]}  Rab8 {[%clk 0:00:56]} 26. Ng5 {[%clk 0:00:31]}  h6 {[%clk 0:00:30]} 27. Bd5+ {[%clk 0:00:30]}  Kh8 {[%clk 0:00:30]} 28. Nf7+ {[%clk 0:00:29]}  Rxf7 {[%clk 0:00:28]} 29. Bxf7 {[%clk 0:00:30]}  c5 {[%clk 0:00:27]} 30. Qf2 {[%clk 0:00:25]}  c4 {[%clk 0:00:26]} 31. Qe2 {[%clk 0:00:16]}  c3 {[%clk 0:00:21]} 32. b3 {[%clk 0:00:16]}  c2 {[%clk 0:00:19]} 33. Bc4 {[%clk 0:00:12]}  Qb1+ {[%clk 0:00:18]} 0-1


[Site "https://www.chess.com"]

[Event "Titled Tuesday Blitz December 20 Late 2022"]
[White "Kamsky, Gata"]
[Black "Rorrer, Grayson"]
[WhiteFideId "2000024"]
[BlackFideId "30944996"]
[WhiteElo "2666"]
[BlackElo "2200"]
[Result "1-0"]
[Round "10"]
[TimeControl "180+1"]
[Date "2022.12.20"]
[WhiteClock "0:02:19"]
[BlackClock "0:01:35"]

1. d4 {[%clk 0:03:00]}  Nf6 {[%clk 0:03:00]} 2. Nf3 {[%clk 0:02:57]}  e6 {[%clk 0:03:00]} 3. Bf4 {[%clk 0:02:55]}  c5 {[%clk 0:03:00]} 4. e3 {[%clk 0:02:55]}  cxd4 {[%clk 0:03:01]} 5. exd4 {[%clk 0:02:54]}  d6 {[%clk 0:03:00]} 6. Nbd2 {[%clk 0:02:51]}  Be7 {[%clk 0:03:00]} 7. h3 {[%clk 0:02:51]}  O-O {[%clk 0:03:01]} 8. Bd3 {[%clk 0:02:50]}  b6 {[%clk 0:03:01]} 9. O-O {[%clk 0:02:48]}  Bb7 {[%clk 0:03:00]} 10. a4 {[%clk 0:02:47]}  a6 {[%clk 0:02:58]} 11. Re1 {[%clk 0:02:47]}  Nbd7 {[%clk 0:02:57]} 12. Bh2 {[%clk 0:02:47]}  Re8 {[%clk 0:02:58]} 13. a5 {[%clk 0:02:47]}  b5 {[%clk 0:02:52]} 14. c4 {[%clk 0:02:47]}  bxc4 {[%clk 0:02:09]} 15. Nxc4 {[%clk 0:02:39]}  Qb8 {[%clk 0:02:08]} 16. Ra3 {[%clk 0:02:38]}  Bd5 {[%clk 0:01:55]} 17. Rb3 {[%clk 0:02:37]}  Qc7 {[%clk 0:01:56]} 18. Nfd2 {[%clk 0:02:30]}  Rab8 {[%clk 0:01:51]} 19. Rc3 {[%clk 0:02:29]}  Qb7 {[%clk 0:01:49]} 20. Bf1 {[%clk 0:02:22]}  Qb4 {[%clk 0:01:35]} 21. Rb3 {[%clk 0:02:19]} 1-0


[Site "https://www.chess.com"]

[Event "Titled Tuesday Blitz December 20 Late 2022"]
[White "Kaplan, Avi Harrison"]
[Black "Itkis, Boris"]
[WhiteFideId "30934559"]
[BlackFideId "1209167"]
[WhiteElo "1983"]
[BlackElo "2216"]
[Result "1-0"]
[Round "10"]
[TimeControl "180+1"]
[Date "2022.12.21"]
[WhiteClock "0:00:40"]
[BlackClock "0:00:18"]

1. d4 {[%clk 0:03:00]}  d5 {[%clk 0:02:52]} 2. c4 {[%clk 0:03:00]}  dxc4 {[%clk 0:02:51]} 3. e3 {[%clk 0:02:58]}  a6 {[%clk 0:02:46]} 4. Bxc4 {[%clk 0:02:58]}  e6 {[%clk 0:02:40]} 5. Nf3 {[%clk 0:02:58]}  b5 {[%clk 0:02:39]} 6. Bd3 {[%clk 0:02:58]}  Bb7 {[%clk 0:02:39]} 7. O-O {[%clk 0:02:53]}  Nf6 {[%clk 0:02:39]} 8. Qe2 {[%clk 0:02:52]}  c5 {[%clk 0:02:27]} 9. Rd1 {[%clk 0:02:51]}  Nbd7 {[%clk 0:02:25]} 10. Nc3 {[%clk 0:02:41]}  Be7 {[%clk 0:02:16]} 11. dxc5 {[%clk 0:02:27]}  Bxc5 {[%clk 0:02:15]} 12. e4 {[%clk 0:02:28]}  e5 {[%clk 0:02:01]} 13. Bg5 {[%clk 0:01:43]}  Qc7 {[%clk 0:01:57]} 14. Rac1 {[%clk 0:01:39]}  O-O {[%clk 0:01:52]} 15. b4 {[%clk 0:01:33]}  Bxb4 {[%clk 0:01:45]} 16. Nxb5 {[%clk 0:01:19]}  Qa5 {[%clk 0:01:40]} 17. Nc7 {[%clk 0:01:11]}  Rac8 {[%clk 0:01:36]} 18. Nxa6 {[%clk 0:01:11]}  Rxc1 {[%clk 0:01:13]} 19. Rxc1 {[%clk 0:01:12]}  Nxe4 {[%clk 0:01:03]} 20. Nxb4 {[%clk 0:00:58]}  Nxg5 {[%clk 0:00:17]} 21. Nxg5 {[%clk 0:00:53]}  Qxb4 {[%clk 0:00:18]} 22. Rb1 {[%clk 0:00:40]} 1-0


[Site "https://www.chess.com"]

[Event "Titled Tuesday Blitz December 20 Late 2022"]
[White "Migot, Tangi"]
[Black "Forgacs, Attila Jr."]
[WhiteFideId "662445"]
[BlackFideId "773654"]
[WhiteElo "2555"]
[BlackElo "2168"]
[Result "1-0"]
[Round "10"]
[TimeControl "180+1"]
[Date "2022.12.21"]
[WhiteClock "0:00:58"]
[BlackClock "0:00:02"]

1. g3 {[%clk 0:03:00]}  g6 {[%clk 0:02:59]} 2. Bg2 {[%clk 0:03:01]}  Bg7 {[%clk 0:02:59]} 3. h4 {[%clk 0:03:01]}  Nf6 {[%clk 0:02:58]} 4. d4 {[%clk 0:03:00]}  d5 {[%clk 0:02:57]} 5. Nc3 {[%clk 0:03:01]}  Bf5 {[%clk 0:02:48]} 6. Bg5 {[%clk 0:03:00]}  c6 {[%clk 0:02:46]} 7. Bxf6 {[%clk 0:02:52]}  Bxf6 {[%clk 0:02:46]} 8. h5 {[%clk 0:02:53]}  Qd7 {[%clk 0:02:42]} 9. hxg6 {[%clk 0:02:52]}  hxg6 {[%clk 0:02:43]} 10. Rxh8+ {[%clk 0:02:50]}  Bxh8 {[%clk 0:02:44]} 11. Qd2 {[%clk 0:02:48]}  Bg7 {[%clk 0:02:38]} 12. O-O-O {[%clk 0:02:47]}  Na6 {[%clk 0:02:38]} 13. e4 {[%clk 0:02:43]}  dxe4 {[%clk 0:02:34]} 14. Nxe4 {[%clk 0:02:43]}  O-O-O {[%clk 0:02:29]} 15. Ne2 {[%clk 0:02:43]}  Qe6 {[%clk 0:02:20]} 16. N4c3 {[%clk 0:02:07]}  Nb4 {[%clk 0:02:19]} 17. d5 {[%clk 0:01:57]}  cxd5 {[%clk 0:02:08]} 18. Nd4 {[%clk 0:01:55]}  Bxd4 {[%clk 0:01:35]} 19. Qxd4 {[%clk 0:01:56]}  Nc6 {[%clk 0:01:35]} 20. Qa4 {[%clk 0:01:52]}  d4 {[%clk 0:01:15]} 21. Nb5 {[%clk 0:01:49]}  a6 {[%clk 0:01:15]} 22. Bxc6 {[%clk 0:01:41]}  Kb8 {[%clk 0:00:38]} 23. Nxd4 {[%clk 0:01:29]}  Qe5 {[%clk 0:00:10]} 24. Bf3 {[%clk 0:01:09]}  Qc5 {[%clk 0:00:10]} 25. Nc6+ {[%clk 0:01:03]}  Kc7 {[%clk 0:00:03]} 26. Qa5+ {[%clk 0:00:59]}  b6 {[%clk 0:00:02]} 27. Qxc5 {[%clk 0:00:59]}  bxc5 {[%clk 0:00:02]} 28. Rxd8 {[%clk 0:00:58]} 1-0


[Site "https://www.chess.com"]

[Event "Titled Tuesday Blitz December 20 Late 2022"]
[White "Movahed, Sina"]
[Black "Veiga, Jose Francisco R P Neves"]
[WhiteFideId "42520835"]
[BlackFideId "1930087"]
[WhiteElo "2225"]
[BlackElo "2320"]
[Result "1-0"]
[Round "10"]
[TimeControl "180+1"]
[Date "2022.12.21"]
[WhiteClock "0:02:16"]
[BlackClock "0:01:01"]

1. e4 {[%clk 0:03:00]}  Nc6 {[%clk 0:02:53]} 2. d4 {[%clk 0:03:00]}  d5 {[%clk 0:02:51]} 3. e5 {[%clk 0:03:00]}  Bf5 {[%clk 0:02:49]} 4. f4 {[%clk 0:02:58]}  e6 {[%clk 0:02:47]} 5. Nf3 {[%clk 0:02:58]}  f6 {[%clk 0:02:45]} 6. Be2 {[%clk 0:02:55]}  Nh6 {[%clk 0:02:44]} 7. O-O {[%clk 0:02:55]}  Be7 {[%clk 0:02:44]} 8. Nbd2 {[%clk 0:02:54]}  O-O {[%clk 0:02:43]} 9. c3 {[%clk 0:02:54]}  fxe5 {[%clk 0:02:36]} 10. fxe5 {[%clk 0:02:52]}  g5 {[%clk 0:02:36]} 11. Nb3 {[%clk 0:02:51]}  Bg6 {[%clk 0:02:34]} 12. Nc5 {[%clk 0:02:44]}  Bxc5 {[%clk 0:02:28]} 13. Bxg5 {[%clk 0:02:41]}  Be7 {[%clk 0:01:41]} 14. Bxh6 {[%clk 0:02:40]}  Rf7 {[%clk 0:01:40]} 15. Qd2 {[%clk 0:02:38]}  Bh5 {[%clk 0:01:37]} 16. Ng5 {[%clk 0:02:32]}  Bxg5 {[%clk 0:01:35]} 17. Bxg5 {[%clk 0:02:29]}  Rxf1+ {[%clk 0:01:34]} 18. Rxf1 {[%clk 0:02:30]}  Qe8 {[%clk 0:01:34]} 19. g4 {[%clk 0:02:27]}  Bg6 {[%clk 0:01:33]} 20. Bf6 {[%clk 0:02:26]}  Be4 {[%clk 0:01:29]} 21. h4 {[%clk 0:02:24]}  h5 {[%clk 0:01:07]} 22. Qh6 {[%clk 0:02:17]}  Qg6 {[%clk 0:01:05]} 23. Qh8+ {[%clk 0:02:17]}  Kf7 {[%clk 0:01:05]} 24. Bg5+ {[%clk 0:02:17]}  Bf5 {[%clk 0:01:01]} 25. Qxa8 {[%clk 0:02:16]} 1-0


[Site "https://www.chess.com"]

[Event "Titled Tuesday Blitz December 20 Late 2022"]
[White "Novikova, Galina"]
[Black "Toncheva, Nadya"]
[WhiteFideId "4157095"]
[BlackFideId "2924056"]
[WhiteElo "1953"]
[BlackElo "2101"]
[Result "0-1"]
[Round "10"]
[TimeControl "180+1"]
[Date "2022.12.21"]
[WhiteClock "0:00:01"]
[BlackClock "0:00:07"]

1. d4 {[%clk 0:03:00]}  d5 {[%clk 0:02:59]} 2. Nc3 {[%clk 0:03:01]}  Nf6 {[%clk 0:02:59]} 3. Bf4 {[%clk 0:03:01]}  c5 {[%clk 0:02:57]} 4. e4 {[%clk 0:02:59]}  dxe4 {[%clk 0:02:47]} 5. d5 {[%clk 0:02:59]}  a6 {[%clk 0:02:40]} 6. Qd2 {[%clk 0:02:54]}  g6 {[%clk 0:02:25]} 7. O-O-O {[%clk 0:02:51]}  Bg7 {[%clk 0:02:25]} 8. d6 {[%clk 0:02:51]}  Nc6 {[%clk 0:02:07]} 9. Nge2 {[%clk 0:02:16]}  e5 {[%clk 0:02:02]} 10. Bg5 {[%clk 0:02:08]}  Bf5 {[%clk 0:01:54]} 11. Ng3 {[%clk 0:02:02]}  Nd4 {[%clk 0:01:46]} 12. Nxf5 {[%clk 0:01:02]}  gxf5 {[%clk 0:01:42]} 13. Nd5 {[%clk 0:00:56]}  Qxd6 {[%clk 0:01:34]} 14. Nxf6+ {[%clk 0:00:57]}  Bxf6 {[%clk 0:01:31]} 15. Bxf6 {[%clk 0:00:57]}  Qxf6 {[%clk 0:01:30]} 16. c3 {[%clk 0:00:58]}  O-O-O {[%clk 0:01:00]} 17. cxd4 {[%clk 0:00:56]}  exd4 {[%clk 0:01:01]} 18. Bc4 {[%clk 0:00:52]}  b5 {[%clk 0:00:59]} 19. Be2 {[%clk 0:00:28]}  Qe5 {[%clk 0:00:35]} 20. Kb1 {[%clk 0:00:27]}  Kb7 {[%clk 0:00:28]} 21. Rc1 {[%clk 0:00:27]}  Rd6 {[%clk 0:00:24]} 22. Bh5 {[%clk 0:00:26]}  Rc8 {[%clk 0:00:22]} 23. Bxf7 {[%clk 0:00:25]}  c4 {[%clk 0:00:21]} 24. Qb4 {[%clk 0:00:20]}  Ka7 {[%clk 0:00:13]} 25. Rhd1 {[%clk 0:00:17]}  Qc5 {[%clk 0:00:11]} 26. Qxc5+ {[%clk 0:00:16]}  Rxc5 {[%clk 0:00:12]} 27. Bg8 {[%clk 0:00:17]}  Rc7 {[%clk 0:00:12]} 28. Rd2 {[%clk 0:00:15]}  Rg7 {[%clk 0:00:12]} 29. Bxc4 {[%clk 0:00:12]}  bxc4 {[%clk 0:00:11]} 30. Rxc4 {[%clk 0:00:13]}  Rxg2 {[%clk 0:00:09]} 31. Rc7+ {[%clk 0:00:07]}  Kb6 {[%clk 0:00:09]} 32. Rxh7 {[%clk 0:00:08]}  e3 {[%clk 0:00:08]} 33. Rd1 {[%clk 0:00:02]}  exf2 {[%clk 0:00:07]} 34. Re7 {[%clk 0:00:01]}  Rg1 {[%clk 0:00:07]} 0-1


[Site "https://www.chess.com"]

[Event "Titled Tuesday Blitz December 20 Late 2022"]
[White "Omelja, Artem"]
[Black "Horvath, Dominik"]
[WhiteFideId "14119846"]
[BlackFideId "1642561"]
[WhiteElo "2404"]
[BlackElo "2405"]
[Result "0-1"]
[Round "10"]
[TimeControl "180+1"]
[Date "2022.12.20"]
[WhiteClock "0:00:04"]
[BlackClock "0:00:21"]

1. e4 {[%clk 0:03:00]}  e5 {[%clk 0:02:58]} 2. Nf3 {[%clk 0:03:00]}  Nf6 {[%clk 0:02:54]} 3. Nxe5 {[%clk 0:02:59]}  d6 {[%clk 0:02:55]} 4. Nf3 {[%clk 0:02:58]}  Nxe4 {[%clk 0:02:55]} 5. d4 {[%clk 0:02:59]}  Be7 {[%clk 0:02:40]} 6. Bd3 {[%clk 0:02:58]}  d5 {[%clk 0:02:37]} 7. O-O {[%clk 0:02:57]}  Bf5 {[%clk 0:02:37]} 8. Re1 {[%clk 0:02:26]}  O-O {[%clk 0:02:31]} 9. Nbd2 {[%clk 0:02:25]}  Nd6 {[%clk 0:02:29]} 10. Nf1 {[%clk 0:02:24]}  Bxd3 {[%clk 0:02:27]} 11. Qxd3 {[%clk 0:02:24]}  c6 {[%clk 0:02:28]} 12. c3 {[%clk 0:02:24]}  Na6 {[%clk 0:02:21]} 13. Ng3 {[%clk 0:02:22]}  Nc7 {[%clk 0:02:19]} 14. Nf5 {[%clk 0:02:20]}  Nxf5 {[%clk 0:02:18]} 15. Qxf5 {[%clk 0:02:21]}  Re8 {[%clk 0:02:09]} 16. Bd2 {[%clk 0:02:20]}  g6 {[%clk 0:02:09]} 17. Qd3 {[%clk 0:02:20]}  Bf6 {[%clk 0:02:03]} 18. Rxe8+ {[%clk 0:02:19]}  Qxe8 {[%clk 0:02:04]} 19. Re1 {[%clk 0:02:19]}  Qd7 {[%clk 0:02:04]} 20. Bf4 {[%clk 0:02:07]}  Ne6 {[%clk 0:01:59]} 21. Be5 {[%clk 0:02:07]}  Bg7 {[%clk 0:01:54]} 22. Bxg7 {[%clk 0:02:07]}  Nxg7 {[%clk 0:01:54]} 23. Ne5 {[%clk 0:02:07]}  Qf5 {[%clk 0:01:48]} 24. Qxf5 {[%clk 0:02:06]}  Nxf5 {[%clk 0:01:49]} 25. Nd7 {[%clk 0:01:44]}  Rd8 {[%clk 0:01:46]} 26. Nc5 {[%clk 0:01:44]}  b6 {[%clk 0:01:44]} 27. Nd3 {[%clk 0:01:44]}  Kf8 {[%clk 0:01:34]} 28. f3 {[%clk 0:01:43]}  a5 {[%clk 0:01:29]} 29. Kf2 {[%clk 0:01:41]}  Nd6 {[%clk 0:01:29]} 30. b3 {[%clk 0:01:39]}  Nb5 {[%clk 0:01:28]} 31. Rc1 {[%clk 0:01:38]}  Ke7 {[%clk 0:01:26]} 32. a4 {[%clk 0:01:36]}  Nd6 {[%clk 0:01:18]} 33. Re1+ {[%clk 0:01:35]}  Kf8 {[%clk 0:01:17]} 34. Ne5 {[%clk 0:01:35]}  Rc8 {[%clk 0:01:17]} 35. Nd3 {[%clk 0:01:25]}  c5 {[%clk 0:01:15]} 36. dxc5 {[%clk 0:01:24]}  bxc5 {[%clk 0:01:15]} 37. Nf4 {[%clk 0:00:38]}  c4 {[%clk 0:01:13]} 38. Rb1 {[%clk 0:00:28]}  Rb8 {[%clk 0:01:11]} 39. b4 {[%clk 0:00:19]}  axb4 {[%clk 0:01:06]} 40. Rxb4 {[%clk 0:00:19]}  Rxb4 {[%clk 0:01:04]} 41. cxb4 {[%clk 0:00:20]}  d4 {[%clk 0:01:02]} 42. Ne2 {[%clk 0:00:20]}  d3 {[%clk 0:00:51]} 43. Nc3 {[%clk 0:00:20]}  Ke7 {[%clk 0:00:48]} 44. g4 {[%clk 0:00:18]}  f5 {[%clk 0:00:40]} 45. Ke3 {[%clk 0:00:18]}  Kd7 {[%clk 0:00:35]} 46. Kd4 {[%clk 0:00:17]}  Kc6 {[%clk 0:00:33]} 47. h3 {[%clk 0:00:12]}  h5 {[%clk 0:00:33]} 48. gxh5 {[%clk 0:00:08]}  gxh5 {[%clk 0:00:33]} 49. h4 {[%clk 0:00:09]}  Kb6 {[%clk 0:00:28]} 50. Kd5 {[%clk 0:00:09]}  Kc7 {[%clk 0:00:29]} 51. b5 {[%clk 0:00:08]}  d2 {[%clk 0:00:27]} 52. b6+ {[%clk 0:00:06]}  Kd7 {[%clk 0:00:25]} 53. a5 {[%clk 0:00:02]}  Nb5 {[%clk 0:00:26]} 54. Nd1 {[%clk 0:00:02]}  c3 {[%clk 0:00:26]} 55. b7 {[%clk 0:00:02]}  Kc7 {[%clk 0:00:22]} 56. Kc5 {[%clk 0:00:01]}  c2 {[%clk 0:00:22]} 57. Ne3 {[%clk 0:00:02]}  d1=Q {[%clk 0:00:21]} 58. Kxb5 {[%clk 0:00:03]}  Qd3+ {[%clk 0:00:21]} 59. Nc4 {[%clk 0:00:03]}  c1=Q {[%clk 0:00:21]} 60. b8=Q+ {[%clk 0:00:03]}  Kxb8 {[%clk 0:00:21]} 61. Kb6 {[%clk 0:00:04]}  Qcxc4 {[%clk 0:00:21]} 0-1


[Site "https://www.chess.com"]